[Event "EYCC 2017"]
[Site "Mamaia"]
[Date "2017.09.08"]
[Round "4"]
[White "Sosovickova, Martina"]
[Black "Zavivaeva, Evelina"]
[Result "0-1"]
[ECO "C49"]
[WhiteElo "1137"]
[BlackElo "1406"]
[Annotator "NA RC"]
[PlyCount "91"]
[EventDate "2017.??.??"]
[EventType "swiss"]
[EventCountry "ROU"]
[SourceTitle "playchess.com"]
[Source "ChessBase"]
[SourceQuality "1"]
[TimeControl "40/5400+30:1800+30"]

1. e4 {[%emt 0:00:00]} e5 {[%emt 0:00:09]} 2. Nf3 {[%emt 0:00:00]} Nc6 {[%emt 0:00:39]} 3. Nc3 {[%emt 0:00:10]} Nf6 {[%emt 0:00:12]} 4. Bb5 {[%emt 0:00:38]} Bb4 {[%emt 0:00:32]} 5. O-O {[%emt 0:00:54]} O-O {[%emt 0:00:09]} 6. d3 {[%emt 0:00:36]} Bxc3 {[%emt 0:00:08]} 7. bxc3 {[%emt 0:00:15]} Ne7 {[%emt 0:02:29]} 8. Nxe5 {[%emt 0:02:22]} c6 {[%emt 0:00:54]} 9. Bc4 {[%emt 0:01:44]} Qa5 {[%emt 0:01:26]} 10. Nf3 {[%emt 0:05:29]} d5 {[%emt 0:09:59]} 11. Bb3 {[%emt 0:04:34]} dxe4 {[%emt 0:01:29]} 12. dxe4 {[%emt 0:00:57]} Nxe4 {[%emt 0:00:43]} 13. Re1 {[%emt 0:02:36]} Nxc3 {[%emt 0:02:32]} 14. Qd2 {[%emt 0:01:34]} Qc5 {[%emt 0:02:24]} 15. Rxe7 {[%emt 0:10:29]} Qxe7 {[%emt 0:00:46]} 16. Qxc3 {[%emt 0:00:17]} Kh8 {[%emt 0:01:25]} 17. Bh6 {[%emt 0:00:48]} f6 {[%emt 0:00:39]} 18. Be3 {[%emt 0:02:38]} Rd8 {[%emt 0:01:54]} 19. Re1 {[%emt 0:03:53]} Qc7 {[%emt 0:01:26]} 20. h3 {[%emt 0:10:03]} Bf5 {[%emt 0:01:17]} 21. Qc5 {[%emt 0:06:08]} Bg6 {[%emt 0:03:38]} 22. g3 {[%emt 0:05:25]} b6 {[%emt 0:01:17]} 23. Qc3 {[%emt 0:01:58]} c5 {[%emt 0:02:01]} 24. Kg2 {[%emt 0:07:33]} Qc6 {[%emt 0:04:39]} 25. Bf4 {[%emt 0:09:07]} Re8 {[%emt 0:00:50]} 26. Rxe8+ {[%emt 0:01:05]} Rxe8 {[%emt 0:00:20]} 27. Qc4 {[%emt 0:02:03]} b5 {[%emt 0:01:33]} 28. Qf1 {[%emt 0:00:59]} c4 {[%emt 0:01:14]} 29. Bxc4 {[%emt 0:00:13]} bxc4 {[%emt 0:00:15]} 30. Qd1 {[%emt 0:01:04]} Be4 {[%emt 0:00:54]} 31. h4 {[%emt 0:00:56]} Re7 {[%emt 0:01:05]} 32. Qd8+ {[%emt 0:00:41]} Re8 {[%emt 0:00:30]} 33. Qd1 {[%emt 0:00:06]} h6 {[%emt 0:00:57]} 34. Be3 {[%emt 0:00:37]} a6 {[%emt 0:00:51]} 35. a3 {[%emt 0:00:40]} Rb8 {[%emt 0:00:32]} 36. Bf4 {[%emt 0:00:41]} Rb2 {[%emt 0:00:36]} 37. Qd8+ {[%emt 0:00:46]} Kh7 {[%emt 0:00:37]} 38. Qd1 {[%emt 0:00:18]} Rxc2 {[%emt 0:01:09]} 39. Bd2 {[%emt 0:00:58]} Bxf3+ {[%emt 0:00:30]} 40. Qxf3 {[%emt 0:00:00]} Qxf3+ {[%emt 0:00:14]} 41. Kxf3 {[%emt 0:00:28]} Rxd2 {[%emt 0:00:08]} 42. Ke3 {[%emt 0:00:20]} c3 {[%emt 0:00:10]} 43. f3 {[%emt 0:00:52]} Rg2 {[%emt 0:00:18]} 44. Kd3 {[%emt 0:00:19]} c2 {[%emt 0:00:10]} 45. f4 {[%emt 0:00:14]} c1=Q {[%emt 0:00:12]} 46. Kd4 {[%emt 0:00:38]} 0-1